bitfinex/quotes_ETHUSD_20250815
["timestamp","ask_amount","ask_price","bid_price","bid_amount"]
[1755226133425,0.4664,4644.5,4643.5,0.001]
[1755226133630,30.108,4644.4,4643.7,0.108]
[1755226133825,0.4664,4644.7,4644.1,0.108]
[1755226134028,2.15303793,4644.6,4643.5,0.001]
[1755226134203,0.108,4644.5,4643.8,0.108]
[1755226134412,2.15318134,4644.3,4643.8,0.108]
[1755226134621,0.4664,4644.7,4643.8,0.108]
[1755226134928,2.15327328,4644.1,4643.8,0.108]
[1755226135109,2.61971984,4644.0,4643.5,0.001]
[1755226135314,0.4664,4644.0,4643.5,0.109]
[1755226135831,0.4664,4643.9,4643.5,0.109]
[1755226136228,0.108,4644.2,4643.5,0.109]
[1755226136426,0.4664,4643.8,4643.5,0.109]
[1755226136731,2.61981401,4643.8,4643.5,0.109]
[1755226136928,2.15341401,4643.8,4643.5,0.109]
[1755226137127,0.4664,4643.7,4643.5,0.109]
[1755226137734,2.15331936,4644.0,4643.5,0.109]
[1755226138132,2.61971936,4644.0,4643.5,0.109]
[1755226138348,2.15340395,4643.9,4643.5,0.109]
[1755226138628,2.6197663,4643.9,4643.5,0.109]
[1755226139030,0.108,4644.2,4643.5,0.109]
[1755226139223,30.0,4644.1,4643.8,0.108]
[1755226139424,30.0,4644.2,4643.8,0.108]
[1755226140231,2.63608679,4644.1,4643.5,0.001]
[1755226140440,2.15350159,4643.6,4643.5,0.001]
[1755226140931,0.4664,4644.2,4643.5,0.001]
[1755226141136,2.15342151,4643.8,4643.5,0.001]
[1755226141309,2.15350159,4643.6,4643.5,0.001]
[1755226141702,32.93480159,4643.6,4643.5,0.001]
[1755226142409,32.8206805,4643.6,4643.5,0.001]
[1755226142613,30.98207891,4643.6,4642.1,0.001]
[1755226142835,2.15413566,4642.3,4642.1,0.001]
[1755226143144,0.20077891,4643.4,4642.1,0.001]
[1755226143326,0.4664,4643.1,4642.1,0.001]
[1755226143535,2.15401719,4642.5,4642.1,0.001]
[1755226143848,30.0,4642.4,4642.1,0.001]
[1755226144012,2.15410464,4642.3,4642.1,0.001]
[1755226144211,32.15410464,4642.3,4642.1,0.001]
[1755226144546,2.15410464,4642.3,4642.1,0.001]
[1755226145309,2.15406034,4642.4,4642.1,0.001]
[1755226145510,30.0,4642.3,4642.1,0.001]
[1755226145841,2.15406034,4642.4,4642.1,0.001]
[1755226146815,2.15391905,4642.7,4642.1,0.001]
[1755226147010,2.15415104,4642.2,4642.1,0.001]
[1755226147223,32.15415104,4642.2,4642.1,0.001]
[1755226147540,30.0,4642.2,4642.1,0.001]
[1755226147709,2.15414754,4642.3,4642.1,0.001]
[1755226147909,30.0,4642.2,4642.1,0.001]
[1755226148110,2.15401184,4642.5,4642.1,0.001]
[1755226148406,30.0,4642.4,4642.1,0.001]
[1755226148611,2.1542074,4642.1,4641.6,0.001]
[1755226148810,0.4664,4642.4,4641.6,0.001]
[1755226149007,2.62067221,4642.0,4641.6,0.001]
[1755226149212,0.4664,4642.0,4641.6,0.001]
[1755226149415,2.15420264,4642.1,4641.6,0.001]
[1755226150033,2.1542681,4642.0,4641.6,0.001]
[1755226150543,32.15430675,4641.9,4641.6,0.001]
[1755226150727,2.62069433,4641.9,4641.6,0.001]
[1755226151125,4.00695537,4648.5,4641.6,0.001]
[1755226151126,0.4664,4643.2,4641.6,0.001]
[1755226151338,2.15406345,4642.4,4641.8,0.108]
[1755226151725,30.0,4642.3,4641.6,0.001]
[1755226151925,2.15426735,4642.0,4641.6,0.001]
[1755226152124,0.5744,4642.2,4641.6,0.001]
[1755226152125,2.15420058,4642.1,4641.6,0.001]
[1755226152326,30.0,4642.0,4641.6,0.001]
[1755226152526,0.5744,4642.6,4641.9,0.108]
[1755226152846,30.0,4642.5,4641.9,0.108]
[1755226153246,30.0,4642.5,4641.7,0.9351]
[1755226153247,30.0,4642.5,4641.7,0.4752]
[1755226153549,2.15410464,4642.3,4641.6,0.001]
[1755226153753,2.15424132,4642.1,4641.6,0.109]
[1755226154345,2.2621473,4642.3,4641.6,0.5842]
[1755226154548,2.26211912,4642.3,4641.7,0.4752]
[1755226154749,2.15402615,4642.5,4641.7,0.4752]
[1755226154946,2.15402615,4642.5,4642.0,0.108]
[1755226155147,2.15396545,4642.6,4642.0,0.108]
[1755226155456,2.15413569,4642.3,4642.0,0.108]
[1755226155746,0.108,4642.7,4642.0,0.108]
[1755226155747,2.15405836,4642.4,4642.0,0.108]
[1755226155947,2.15411017,4642.3,4642.0,0.108]
[1755226156934,2.15415319,4642.2,4642.0,0.108]
[1755226157136,2.15401752,4642.5,4642.0,0.108]
[1755226157336,0.4664,4642.2,4641.6,0.001]
[1755226157536,0.4664,4642.2,4641.8,0.108]
[1755226157976,2.15410464,4642.3,4641.8,0.108]
[1755226158269,2.15417123,4642.2,4641.8,0.108]
[1755226158467,0.108,4642.4,4641.8,0.108]
[1755226159033,2.15415524,4642.2,4641.8,0.108]
[1755226159267,2.15410995,4642.3,4641.8,0.108]
[1755226159463,0.108,4642.4,4641.8,0.5832]
[1755226159844,2.26206098,4642.4,4641.8,0.5832]
[1755226160356,0.108,4642.4,4641.8,0.5832]
[1755226160685,2.26207174,4642.4,4641.8,0.5832]
[1755226161038,2.15410593,4642.3,4641.8,0.5832]
[1755226161373,2.15410986,4642.3,4641.8,0.108]
[1755226161539,2.62050986,4642.3,4641.8,0.108]
[1755226162346,0.108,4642.4,4641.9,0.4842]
[1755226162559,0.108,4642.8,4642.1,0.108]
[1755226162764,0.11230624,4644.1,4642.1,3.679]
[1755226162941,0.108,4643.4,4642.7,0.108]
[1755226163146,2.2616004,4643.4,4642.7,0.108]
[1755226163345,0.4529,4643.8,4642.6,0.4842]
[1755226163643,30.108,4643.7,4643.1,0.108]
[1755226163844,30.0,4643.6,4643.1,0.108]
[1755226164269,32.15350437,4643.6,4643.1,0.108]
[1755226164476,30.4529,4643.5,4643.1,0.108]
[1755226164649,30.4529,4643.4,4642.4,0.75427971]
[1755226164849,30.0,4643.3,4642.8,0.108]
[1755226165179,2.15373349,4643.1,4642.8,0.108]
[1755226165490,2.15385188,4642.9,4642.6,0.108]
[1755226165776,2.15397497,4642.6,4642.3,0.108]
[1755226165978,30.0,4642.5,4642.0,0.108]
[1755226166270,30.0,4642.6,4641.7,0.75427971]
[1755226166475,2.26205882,4642.4,4641.8,0.108]
[1755226166671,32.15411491,4642.3,4641.8,0.108]
[1755226166874,2.15411491,4642.3,4641.8,0.108]
[1755226167047,0.108,4642.4,4641.8,0.108]
[1755226167374,30.0,4642.3,4641.8,0.108]
[1755226167547,30.0,4642.3,4641.9,0.4842]
[1755226167956,0.108,4642.6,4641.9,0.4842]
[1755226168353,2.15402454,4642.5,4641.9,0.4842]
[1755226168552,3.561,4643.0,4641.9,0.4842]
[1755226168779,2.15387266,4642.8,4642.3,0.108]
[1755226168976,32.15392573,4642.7,4642.3,0.108]
[1755226169179,30.0,4642.6,4642.3,0.108]
[1755226169379,2.15396545,4642.6,4642.3,0.108]
[1755226169751,2.15405824,4642.4,4642.3,0.108]
[1755226169952,2.60695824,4642.4,4642.3,0.108]
[1755226170383,2.15420236,4642.1,4641.8,0.75427971]
[1755226170694,2.15424386,4642.0,4641.9,0.108]
[1755226170875,2.15424386,4642.0,4641.6,0.001]
[1755226171061,2.15429026,4641.9,4641.6,0.001]
[1755226171254,2.15429026,4641.9,4641.6,0.75527971]
[1755226171768,2.15433979,4641.8,4641.6,0.75527971]
[1755226172082,0.4529,4642.0,4641.6,0.75527971]
[1755226172278,2.15429323,4641.9,4641.7,0.75427971]
[1755226172580,2.15430687,4641.9,4641.7,0.75427971]
[1755226172782,2.15419745,4642.1,4641.7,0.75427971]
[1755226172964,2.15434445,4641.8,4641.6,0.75527971]
[1755226173164,2.15429026,4641.9,4641.6,0.75527971]
[1755226173349,2.15435166,4641.8,4641.6,0.75527971]
[1755226173554,2.15435166,4641.8,4641.7,0.75427971]
[1755226173851,2.60718979,4642.0,4641.6,0.001]
[1755226174078,2.60718979,4642.0,4641.7,0.76151128]
[1755226174273,2.15429079,4641.9,4641.7,0.76151128]
[1755226174676,2.15433667,4641.8,4641.7,0.76151128]
[1755226174855,2.15429533,4641.9,4641.7,0.76151128]
[1755226175257,2.60714781,4642.0,4641.7,0.76151128]
[1755226175453,2.15421624,4642.1,4641.7,0.76151128]
[1755226175757,0.4529,4643.2,4641.7,0.76151128]
[1755226175956,30.0,4643.1,4642.0,0.76151128]
[1755226176290,30.0,4643.4,4642.7,0.108]
[1755226176591,30.0,4643.6,4643.3,0.108]
[1755226176777,2.15345065,4643.8,4643.3,0.5922]
[1755226176980,30.0,4643.7,4643.3,0.5922]
[1755226177177,0.108,4644.0,4643.3,0.86951128]
[1755226177378,0.002,4644.1,4643.7,0.108]
[1755226177776,0.002,4644.1,4643.8,0.4842]
[1755226178389,0.002,4644.1,4643.7,0.108]
[1755226178780,2.15528865,4644.1,4643.7,0.5922]
[1755226179481,0.002,4644.1,4643.8,0.4842]
[1755226179786,2.15527111,4644.1,4643.7,0.108]
[1755226180162,0.002,4644.1,4643.7,0.108]
[1755226180657,0.002,4644.1,4643.3,0.4842]
[1755226180658,2.15336247,4643.9,4643.3,0.108]
[1755226180987,32.15342338,4643.8,4643.3,0.108]
[1755226181185,2.15345521,4643.7,4643.3,0.108]
[1755226182287,0.5609,4644.0,4643.3,0.108]
[1755226182582,2.15343071,4643.8,4643.3,0.108]
[1755226183289,2.15347372,4643.7,4643.3,0.108]
[1755226183666,2.15341589,4643.8,4643.3,0.108]
[1755226183978,0.5609,4644.0,4643.3,0.108]
[1755226184182,30.0,4643.9,4643.3,0.108]
[1755226184381,2.15341328,4643.8,4643.3,0.108]
[1755226185264,2.15541328,4643.8,4643.3,0.108]
[1755226185460,2.15345644,4643.7,4643.3,0.108]
[1755226185793,30.0,4643.6,4643.3,0.108]
[1755226185985,30.0,4643.7,4643.3,0.108]
[1755226186184,30.0,4643.7,4643.1,0.108]
[1755226186901,32.15349388,4643.7,4643.1,0.108]
[1755226187065,2.15349388,4643.7,4643.1,0.108]
[1755226187796,0.11,4643.8,4643.1,0.108]
[1755226188010,32.15347427,4643.7,4643.1,0.108]
[1755226188163,2.15360282,4643.4,4642.6,0.76151128]
[1755226188369,2.15360282,4643.4,4642.9,0.108]
[1755226188568,2.60650282,4643.4,4642.9,0.108]
[1755226188777,2.15368711,4643.2,4642.9,0.108]
[1755226189000,32.15377196,4643.1,4642.9,0.108]
[1755226189298,2.15387964,4642.8,4642.3,0.76151128]
[1755226189498,2.15387964,4642.8,4642.5,0.108]
[1755226189800,2.60677964,4642.8,4642.5,0.108]
[1755226190099,0.4529,4642.8,4642.5,0.108]
[1755226190266,2.60682524,4642.7,4642.5,0.108]
[1755226190467,2.15392524,4642.7,4642.5,0.108]
[1755226190767,30.0,4642.5,4641.7,1.13621319]
[1755226190974,30.0,4642.5,4641.6,0.0274]
[1755226190975,2.15429026,4641.9,4641.6,0.0274]
[1755226191283,2.15438309,4641.7,4641.6,0.0274]
[1755226191495,32.15438309,4641.7,4641.6,0.0274]
[1755226191799,35.68338309,4641.7,4641.6,0.0274]
[1755226191984,36.12988309,4641.7,4641.6,0.0274]
[1755226192191,35.68338309,4641.7,4641.6,0.0274]
[1755226192697,36.12788309,4641.7,4641.6,0.0274]
[1755226193799,2.15452234,4641.4,4641.3,0.001]
[1755226193986,35.69493939,4641.4,4641.3,0.001]
[1755226194186,35.67852234,4641.4,4641.3,0.001]
[1755226194395,36.12502234,4641.4,4641.3,0.001]
[1755226194583,36.28678539,4641.4,4641.3,0.001]
[1755226194984,33.68576305,4641.4,4641.3,0.001]
[1755226195540,35.84028539,4641.4,4641.3,0.001]
[1755226196013,5.83828539,4641.4,4641.3,0.001]
[1755226196679,2.31628539,4641.4,4641.3,0.001]
[1755226196884,5.83728539,4641.4,4641.3,0.001]
[1755226197702,2.15456876,4641.3,4640.9,6.603e-05]
[1755226197908,2.15461765,4641.2,4640.9,6.603e-05]
[1755226198218,30.0,4641.1,4640.9,6.603e-05]
[1755226198403,3.516,4641.0,4640.9,6.603e-05]
[1755226199913,3.516,4641.0,4640.9,0.46466603]
[1755226200082,3.512,4641.1,4640.9,0.93766603]
[1755226200284,3.512,4641.2,4641.0,0.9376]
[1755226200529,3.512,4641.1,4640.9,6.603e-05]
[1755226200713,0.01641705,4641.0,4640.9,6.603e-05]
[1755226200909,0.108,4641.2,4640.9,6.603e-05]
[1755226201112,33.512,4641.1,4640.9,6.603e-05]
[1755226201309,3.512,4641.1,4640.9,6.603e-05]
[1755226202517,2.15470803,4641.0,4640.9,6.603e-05]
[1755226202719,32.61762508,4641.0,4640.9,6.603e-05]
[1755226202920,32.60120803,4641.0,4640.9,6.603e-05]
[1755226203123,32.91610803,4641.0,4640.9,6.603e-05]
[1755226203945,32.60120803,4641.0,4640.9,6.603e-05]
[1755226204434,36.21920803,4641.0,4640.9,6.603e-05]
[1755226204721,36.53410803,4641.0,4640.9,6.603e-05]
[1755226204921,2.15512596,4640.1,4639.5,0.001]
[1755226205122,29.51144698,4639.6,4638.1,1.10757814]
[1755226205296,36.14032172,4639.5,4638.1,1.10757814]
[1755226205496,2.1558558,4638.6,4638.1,0.64297814]
[1755226205697,32.15545113,4639.4,4637.9,0.473]
[1755226205698,3.521,4638.5,4637.9,0.473]
[1755226206097,3.521,4638.5,4637.6,0.4646]
[1755226206098,30.01641705,4638.4,4637.6,0.4646]
[1755226206299,2.15624628,4637.7,4637.3,0.473]
[1755226206500,30.0,4638.3,4636.4,0.4656]
[1755226206501,30.0,4637.3,4636.4,0.4656]
[1755226206688,2.1565392,4637.1,4636.4,0.4656]
[1755226206889,3.522,4637.0,4636.4,0.4656]
[1755226207126,2.15638279,4637.4,4636.4,0.001]
[1755226207309,2.315336,4638.4,4636.9,3.09419061]
[1755226207509,0.4465,4638.8,4636.4,0.02256845]
[1755226207510,35.67697263,4638.3,4637.1,2.15652023]
[1755226207713,2.15605528,4638.1,4637.2,0.9376]
[1755226207905,2.15629159,4637.6,4636.8,0.001]
[1755226208098,2.15587605,4638.5,4636.8,0.001]
[1755226208099,33.521,4637.5,4636.8,0.001]
[1755226208300,2.15619953,4637.8,4636.8,0.001]
[1755226208513,33.52,4637.7,4636.9,0.9376]
[1755226208711,33.52,4637.6,4636.9,0.4646]
[1755226208889,2.31806708,4638.4,4636.8,0.001]
[1755226208890,30.0,4637.5,4636.8,0.001]
[1755226209099,2.15633007,4637.6,4636.8,0.001]
[1755226209403,33.521,4637.5,4636.8,0.001]
[1755226209603,2.15633007,4637.6,4636.8,0.001]
[1755226209930,33.519,4637.5,4636.8,0.001]
[1755226210228,3.519,4637.5,4636.8,0.001]
[1755226210537,3.519,4637.4,4636.8,0.4656]
[1755226210723,0.16213781,4638.4,4636.9,0.473]
[1755226210924,33.518,4638.3,4636.9,0.473]
[1755226211221,2.15607478,4638.1,4636.9,0.473]
[1755226211520,33.516,4638.0,4637.0,0.48616566]
[1755226211723,3.516,4638.0,4637.1,0.473]
[1755226212292,0.16194621,4638.4,4637.1,0.473]
[1755226212499,33.516,4638.3,4637.2,0.4646]
[1755226212828,30.0,4638.2,4637.2,0.4646]
[1755226212993,3.513,4638.1,4637.2,0.4646]
[1755226213398,0.4465,4638.5,4637.2,0.4646]
[1755226213624,35.66892098,4638.4,4637.3,0.473]
[1755226213925,2.15605706,4638.1,4637.3,0.473]
[1755226214125,33.52841705,4638.0,4636.8,0.474]
[1755226214331,32.15615273,4637.9,4636.8,0.474]
[1755226214624,30.0,4637.8,4636.9,0.4646]
[1755226214850,3.512,4638.0,4636.9,0.4646]
[1755226215134,0.108,4638.0,4637.3,0.108]
[1755226215428,3.509,4637.9,4637.3,0.108]
[1755226216200,3.509,4637.8,4637.3,0.108]
[1755226216737,0.108,4638.0,4637.4,0.4646]
[1755226216908,3.508,4637.9,4637.4,0.4646]
[1755226217101,3.506,4637.8,4637.5,0.9376]
[1755226217296,3.506,4638.1,4637.8,0.108]
[1755226217597,3.506,4638.1,4637.9,0.4646]
[1755226217799,2.15566468,4639.0,4637.8,0.108]
[1755226217800,0.4465,4639.3,4638.0,0.9376]
[1755226218021,30.0,4639.2,4638.1,0.48616055]
[1755226218223,3.505,4639.1,4638.7,0.108]
[1755226218426,2.1553126,4639.7,4638.8,0.4646]
[1755226218626,0.108,4639.6,4639.0,0.108]
[1755226218835,3.613,4639.9,4639.0,0.108]
[1755226219004,30.0,4639.8,4639.0,0.108]
[1755226219196,0.4465,4639.7,4637.6,0.4646]
[1755226219399,0.108,4639.1,4638.3,0.108]
[1755226219632,33.506,4639.0,4638.3,0.108]
[1755226219835,30.0,4638.9,4638.3,0.108]
[1755226220653,0.46291705,4638.8,4638.3,0.108]
[1755226220799,0.46291705,4638.8,4638.1,0.108]
[1755226220800,0.108,4638.7,4638.1,0.108]
[1755226221004,5.65882562,4638.6,4638.1,0.108]
[1755226221321,0.108,4638.7,4638.1,0.108]
[1755226221522,3.503,4638.6,4638.1,0.108]
[1755226222032,5.65882853,4638.6,4638.1,0.108]
[1755226222239,0.44831705,4638.5,4638.1,0.108]
[1755226222745,3.503,4638.6,4638.1,0.108]
[1755226223619,5.65882406,4638.6,4638.1,0.108]
[1755226223914,32.58779689,4638.5,4637.6,0.4646]
[1755226224126,30.0,4638.4,4637.8,0.108]
[1755226224524,32.15592437,4638.4,4637.8,0.108]
[1755226224729,0.01641705,4638.3,4637.3,0.001]
[1755226225047,0.01641705,4638.3,4637.4,0.108]
[1755226225048,2.15610931,4638.0,4637.4,0.108]
[1755226225450,2.15605528,4638.1,4637.4,0.108]
[1755226225616,3.603,4638.2,4636.8,0.001]
[1755226225617,2.15656674,4637.0,4636.8,0.001]
[1755226225817,35.65156674,4637.0,4636.8,0.001]
[1755226226016,33.495,4637.0,4636.8,0.001]
[1755226226347,33.502,4637.0,4636.8,0.001]
[1755226226716,35.65856674,4637.0,4636.8,0.001]
[1755226227046,33.502,4637.0,4636.8,0.001]
[1755226227250,32.15656674,4637.0,4636.8,0.001]
[1755226227547,35.65656674,4637.0,4636.8,0.001]
[1755226227750,32.15656674,4637.0,4636.8,0.001]
[1755226227930,36.08846674,4637.0,4636.8,0.001]
[1755226228124,36.40336674,4637.0,4636.8,0.001]
[1755226228552,2.15661325,4636.9,4636.8,0.001]
[1755226228841,32.9198303,4636.9,4636.8,0.001]
[1755226229044,32.90341325,4636.9,4636.8,0.001]
[1755226229229,33.10418588,4636.9,4636.8,0.001]
[1755226230363,36.60218588,4636.9,4636.8,0.001]
[1755226231033,2.1567993,4636.5,4636.4,0.001]
[1755226231338,35.67121635,4636.5,4636.4,0.001]
[1755226231528,36.60237193,4636.5,4636.4,0.001]
[1755226231729,36.28747193,4636.5,4636.4,0.001]
[1755226232133,30.0,4636.4,4636.2,0.001]
[1755226232435,2.15703192,4636.0,4635.4,0.001]
[1755226232623,35.66944897,4636.0,4635.4,0.001]
[1755226232823,36.60060455,4636.0,4635.4,0.001]
[1755226233027,2.15721805,4635.6,4635.4,0.001]
[1755226233251,35.6696351,4635.6,4635.4,0.001]
[1755226233454,34.47117263,4635.6,4633.8,0.46065151]
[1755226233631,2.15785663,4634.3,4633.8,0.46065151]
[1755226233954,0.01641705,4634.2,4633.8,0.46065151]
[1755226234152,3.495,4634.3,4633.9,0.4415]
[1755226234321,3.495,4634.3,4634.0,0.4415]
[1755226234717,0.16272187,4634.3,4634.0,0.4415]
[1755226234946,3.493,4634.5,4634.1,0.4415]
[1755226235130,3.493,4634.6,4634.2,0.4415]
[1755226235449,3.493,4634.5,4634.2,0.4883]
[1755226235650,3.493,4634.6,4634.2,0.108]
[1755226235843,2.2655911,4634.8,4634.3,0.4883]
[1755226236040,30.0,4634.7,4634.4,0.9298]
[1755226236651,30.0,4634.7,4634.1,0.108]
[1755226236857,3.493,4634.6,4634.1,0.108]
[1755226237054,3.493,4634.6,4633.7,0.4883]
[1755226237256,0.108,4634.5,4633.9,0.108]
[1755226237554,3.492,4634.5,4634.0,0.4883]
[1755226237750,0.108,4634.8,4634.1,0.9298]
[1755226237956,0.16280196,4635.7,4634.4,0.108]
[1755226237957,3.492,4635.1,4634.4,0.108]
[1755226238124,2.15710016,4635.9,4634.7,2.26559511]
[1755226238324,0.108,4635.7,4635.1,0.108]
[1755226238557,30.0,4635.6,4635.1,0.5963]
[1755226238754,30.0,4635.6,4635.1,0.5495]
[1755226239055,0.01641705,4635.5,4635.1,0.108]
[1755226239232,35.75732583,4635.4,4634.7,0.108]
[1755226239433,2.15737004,4635.3,4634.7,0.108]
[1755226240359,2.15749227,4635.1,4634.7,0.108]
[1755226240559,5.64849814,4635.0,4634.7,0.108]
[1755226240855,5.64849814,4635.0,4634.5,0.5963]
[1755226241058,3.491,4635.0,4634.5,0.5963]
[1755226242028,3.487,4635.1,4634.6,0.9298]
[1755226242332,3.487,4635.1,4634.9,0.108]
[1755226242532,3.487,4635.1,4635.0,0.9298]
[1755226242757,27.6985765,4637.6,4635.0,0.9298]
[1755226242935,0.108,4636.0,4635.4,0.108]
[1755226243138,30.0,4635.9,4635.4,0.108]
[1755226243457,0.108,4636.0,4635.5,0.9298]
[1755226243634,3.594,4636.0,4635.6,0.4883]
[1755226243945,3.594,4636.0,4635.4,0.108]
[1755226244145,0.108,4636.0,4635.4,0.108]
[1755226244331,3.484,4635.9,4635.4,0.108]
[1755226244527,0.108,4636.0,4635.4,0.108]
[1755226244733,0.108,4636.0,4635.5,0.9298]
[1755226244939,0.108,4636.0,4635.6,0.4883]
[1755226245138,0.108,4636.0,4635.6,0.4415]
[1755226245342,0.108,4636.0,4635.7,0.4883]
[1755226245960,0.108,4636.0,4635.4,0.108]
[1755226246160,2.26503458,4636.0,4635.4,0.108]
[1755226246338,3.481,4635.9,4635.4,0.108]
[1755226246537,5.63808454,4635.9,4635.4,0.108]
[1755226247157,3.481,4635.9,4635.4,0.108]
[1755226247569,3.481,4635.9,4635.4,0.5963]
[1755226247875,0.108,4636.0,4635.5,0.4883]
[1755226248046,3.585,4636.0,4635.5,0.4883]
[1755226248251,1.12996844,4638.0,4635.6,0.95137218]
[1755226248449,0.108,4637.4,4636.7,0.108]
[1755226248760,0.108,4637.4,4636.8,0.9298]
[1755226251367,0.108,4637.4,4636.8,0.4883]
[1755226252870,0.002,4637.5,4636.9,0.46516613]
[1755226253080,0.002,4637.5,4637.4,2.15638073]
[1755226253438,0.002,4637.5,4637.4,3.08138073]
[1755226253742,0.002,4637.5,4637.4,2.63778073]
[1755226253950,0.002,4637.5,4637.4,3.08138073]
[1755226254149,0.002,4637.5,4637.4,3.10294453]
[1755226254578,0.002,4637.5,4637.4,0.4814]
[1755226254892,0.002,4637.5,4637.3,0.108]
[1755226255184,0.002,4637.5,4637.4,0.925]
[1755226259493,0.002,4637.5,4637.3,0.108]
[1755226260283,0.002,4637.5,4637.4,3.10294453]
[1755226260483,0.002,4637.9,4637.6,2.15626628]
[1755226260664,0.002,4637.9,4637.8,2.26419474]
[1755226261064,0.002,4637.9,4637.8,3.18919474]
[1755226261271,0.002,4637.9,4637.8,6.64919474]
[1755226263496,0.002,4637.9,4637.8,6.73556974]
[1755226264283,1e-08,4637.9,4637.8,9.73556974]
[1755226264588,1e-08,4638.5,4638.4,2.15591583]
[1755226264765,1e-08,4638.5,4638.4,5.61191583]
[1755226264968,1e-08,4638.5,4638.4,6.20131583]
[1755226265164,1e-08,4638.5,4638.4,6.64491583]
[1755226265793,1e-08,4638.5,4638.4,6.20131583]
[1755226265986,1e-08,4638.5,4638.4,6.64491583]
[1755226266867,1e-08,4638.5,4638.4,0.108]
[1755226267297,0.46110001,4638.5,4638.4,0.108]
[1755226267863,32.61696936,4638.5,4638.4,0.108]
[1755226268065,0.46110001,4638.5,4638.1,0.108]
[1755226268296,1e-08,4638.5,4638.1,0.108]
[1755226268482,0.4611,4638.4,4638.1,0.108]
[1755226268678,1e-08,4638.5,4638.1,0.108]
[1755226268901,0.4611,4638.3,4638.1,0.108]
[1755226269298,1e-08,4638.5,4638.2,0.108]
[1755226269722,1e-08,4638.5,4638.4,2.15591583]
[1755226270218,1e-08,4638.5,4638.4,3.08091583]
[1755226270586,1e-08,4638.5,4638.4,2.15591583]
[1755226271804,1e-08,4638.5,4638.4,3.10247498]
[1755226273019,1e-08,4638.5,4638.4,6.10247498]
[1755226273222,1e-08,4638.5,4638.4,6.08091583]
[1755226274632,1e-08,4638.5,4638.4,6.16727283]
[1755226278155,1e-08,4638.5,4638.4,10.41727283]
[1755226278616,1e-08,4638.5,4638.4,9.97367283]
[1755226278944,1e-08,4638.5,4638.4,9.49227283]
[1755226279144,1e-08,4638.5,4638.4,6.40591583]
[1755226279709,1e-08,4638.5,4638.4,6.51391583]
[1755226280457,1e-08,4638.5,4638.4,4.358]
[1755226280940,1e-08,4638.5,4638.4,0.108]
[1755226281129,0.46110001,4638.5,4638.4,3.546]
[1755226281717,0.80560001,4638.5,4638.4,3.546]
[1755226282047,0.46110001,4638.5,4638.4,3.546]
[1755226282409,0.80560001,4638.5,4638.4,3.546]
[1755226282606,0.80560001,4638.5,4638.4,0.108]
[1755226284025,0.46110001,4638.5,4638.4,0.108]
[1755226284223,1e-08,4638.5,4638.4,3.545]
[1755226286214,1e-08,4638.5,4637.2,6.40647198]
[1755226286215,1e-08,4638.5,4638.2,3.438]
[1755226286419,1e-08,4638.5,4638.4,0.108]
[1755226287532,1e-08,4638.5,4638.4,2.26391583]
[1755226287735,1e-08,4638.5,4638.4,2.71751583]
[1755226287934,1e-08,4638.5,4638.4,3.17121583]
[1755226288958,1e-08,4638.5,4638.4,2.26391583]
[1755226289155,1e-08,4638.5,4638.4,5.69991583]
[1755226289536,1e-08,4638.5,4638.4,3.544]
[1755226290929,1e-08,4638.5,4638.4,5.69991583]
[1755226291129,1e-08,4638.5,4638.4,6.60721583]
[1755226291344,1e-08,4638.5,4638.4,3.9976]
[1755226291552,1e-08,4638.5,4638.4,3.544]
[1755226293336,1e-08,4638.5,4638.4,3.538]
[1755226293765,1e-08,4638.5,4638.4,0.108]
[1755226293967,1e-08,4638.5,4638.4,3.538]
[1755226294353,1e-08,4638.5,4638.4,5.71547498]
[1755226294545,1e-08,4638.5,4638.4,6.14751583]
[1755226294944,1e-08,4638.5,4638.4,3.538]
[1755226295140,1e-08,4638.5,4638.4,0.108]
[1755226295375,1e-08,4638.5,4638.4,3.536]
[1755226297084,0.43930001,4638.5,4638.4,3.536]
[1755226297653,1e-08,4638.5,4638.4,3.536]
[1755226300486,2.15595783,4638.4,4637.9,3.421]
[1755226300640,2.93979603,4638.3,4637.9,3.421]
[1755226300890,0.4393,4638.2,4637.9,3.421]
[1755226301131,0.10800001,4638.5,4637.9,3.421]
[1755226301286,1e-08,4638.5,4637.9,3.421]
[1755226301627,1e-08,4638.5,4638.1,0.108]
[1755226301911,1e-08,4638.5,4638.2,3.419]
[1755226302409,1e-08,4638.5,4638.4,2.15591583]
[1755226302617,1e-08,4638.5,4638.4,2.28547498]
[1755226302816,1e-08,4638.5,4638.4,3.17121583]
[1755226302986,1e-08,4638.5,4638.4,3.19277498]
[1755226303813,1e-08,4638.5,4638.4,6.19277498]
[1755226304013,1e-08,4638.5,4638.4,6.17121583]
[1755226304807,1e-08,4638.5,4638.4,7.67791153]
[1755226305519,1e-08,4638.5,4638.4,6.17121583]
[1755226306087,1e-08,4638.5,4638.4,6.47921583]
[1755226307829,1e-08,4638.5,4638.4,9.47921583]
[1755226308541,1e-08,4639.0,4638.9,2.15568345]
[1755226308725,1e-08,4639.0,4638.9,8.60524028]
[1755226308916,1e-08,4639.0,4638.9,9.49098345]